fUSD/lending_fUSD_20250511
["ID","MTS","AMOUNT","RATE_DAILY","PERIOD"]
[360719414,1746951046939,-283.997,0.00019858,2]
[360719415,1746951046953,-238.851,0.00019858,2]
[360719416,1746951046965,-253.434,0.00019858,2]
[360719417,1746951046976,-182.901,0.00019858,2]
[360719418,1746951046989,-203.185,0.00019858,2]
[360719419,1746951047002,-260.843,0.00019858,2]
[360719420,1746951047015,-928.0,0.00019858,2]
[360719421,1746951047028,-1303.0,0.00019858,2]
[360719422,1746951047041,-798.0,0.00019858,2]
[360719423,1746951047053,-627.0,0.00019858,2]
[360719424,1746951047065,-917.0,0.00019858,2]
[360719425,1746951047077,-1454.0,0.00019858,2]
[360719426,1746951047088,-1246.0,0.00019858,2]
[360719427,1746951047101,-582.0,0.00019858,2]
[360719428,1746951047113,-552.0,0.00019858,2]
[360719429,1746951047127,-1680.0,0.00019865,2]
[360719430,1746951047139,-158.74,0.00019886,2]
[360719431,1746951047154,-450.0,0.00019896,2]
[360719432,1746951047167,-400.0,0.00019896,2]
[360719433,1746951047178,-400.0,0.00019896,2]
[360719434,1746951047191,-400.0,0.00019896,2]
[360719435,1746951047203,-187.64488125,0.00019896,2]
[360719436,1746951047215,-400.0,0.00019896,2]
[360719437,1746951047226,-400.0,0.00019896,2]
[360719438,1746951047239,-400.0,0.00019896,2]
[360719439,1746951047251,-400.0,0.00019896,2]
[360719440,1746951047264,-400.0,0.00019896,2]
[360719441,1746951047279,-402.95210564,0.00019896,2]
[360719442,1746951047291,-400.0,0.00019896,2]
[360719443,1746951047302,-195.28955756,0.00019896,2]
[360719444,1746951047313,-239.09493927,0.00019896,2]
[360719445,1746951047323,-400.0,0.00019896,2]
[360719446,1746951047334,-400.0,0.00019896,2]
[360719447,1746951047346,-400.0,0.00019896,2]
[360719448,1746951047358,-400.0,0.00019896,2]
[360719449,1746951047370,-400.0,0.00019896,2]
[360719450,1746951047382,-400.0,0.00019896,2]
[360719451,1746951047393,-442.83044891,0.00019896,2]
[360719452,1746951047404,-400.0,0.00019896,2]
[360719453,1746951047414,-400.0,0.00019896,2]
[360719454,1746951047424,-400.0,0.00019896,2]
[360719455,1746951047435,-400.0,0.00019896,2]
[360719456,1746951047446,-294.12802214,0.00019896,2]
[360719457,1746951047457,-400.0,0.00019896,2]
[360719458,1746951047471,-400.0,0.00019896,2]
[360719459,1746951047482,-400.0,0.00019896,2]
[360719460,1746951047494,-238.19275453,0.00019896,2]
[360719461,1746951047505,-290.22393151,0.00019896,2]
[360719462,1746951047516,-161.93196241,0.00019896,2]
[360719463,1746951047527,-400.0,0.00019896,2]
[360719464,1746951047538,-400.0,0.00019896,2]
[360719465,1746951047549,-400.0,0.00019896,2]
[360719466,1746951047560,-400.0,0.00019896,2]
[360719467,1746951047571,-400.0,0.00019896,2]
[360719468,1746951047582,-400.0,0.00019896,2]
[360719469,1746951047593,-400.0,0.00019896,2]
[360719470,1746951047605,-9.20439768,0.00019896,2]
[360719471,1746951047884,-390.79560232,0.00019896,2]
[360719472,1746951047897,-400.0,0.00019896,2]
[360719473,1746951047908,-400.0,0.00019896,2]
[360719474,1746951047919,-400.0,0.00019896,2]
[360719475,1746951047932,-452.76400791,0.00019896,2]
[360719476,1746951047943,-400.0,0.00019896,2]
[360719477,1746951047954,-400.0,0.00019896,2]
[360719478,1746951047965,-400.0,0.00019896,2]
[360719479,1746951047976,-400.0,0.00019896,2]
[360719480,1746951047987,-400.0,0.00019896,2]
[360719481,1746951047998,-400.0,0.00019896,2]
[360719482,1746951048010,-400.0,0.00019896,2]
[360719483,1746951048020,-400.0,0.00019896,2]
[360719484,1746951048031,-400.0,0.00019896,2]
[360719485,1746951048042,-400.39565934,0.00019896,2]
[360719486,1746951048052,-400.0,0.00019896,2]
[360719487,1746951048064,-400.0,0.00019896,2]
[360719488,1746951048074,-164.43866761,0.00019896,2]
[360719489,1746951048132,-259.025,0.00019557,2]
[360719490,1746951048145,-140.975,0.00019557,2]
[360719491,1746951048157,-235.56133239,0.00019896,2]
[360719492,1746951048168,-400.0,0.00019896,2]
[360719493,1746951048180,-370.21753586,0.00019896,2]
[360719494,1746951048191,-400.0,0.00019896,2]
[360719495,1746951048203,-400.0,0.00019896,2]
[360719496,1746951048218,-400.0,0.00019896,2]
[360719497,1746951048230,-152.51814604,0.00019896,2]
[360719498,1746951055220,-281.29725983,0.0001957,2]
[360719499,1746951055405,-1012.97035628,0.0001957,2]
[360719500,1746951055472,-3587.66738418,0.0001957,2]
[360719501,1746951055482,-309.98315375,0.00019734,2]
[360719502,1746951055491,-2015.77,0.00019734,2]
[360719503,1746951055500,-400.0,0.00019734,2]
[360719504,1746951055510,-400.0,0.00019734,2]
[360719505,1746951055519,-160.338623,0.00019734,2]
[360719506,1746951055528,-400.0,0.00019734,2]
[360719507,1746951055538,-400.0,0.00019799,2]
[360719508,1746951055546,-247.48185396,0.00019896,2]
[360719510,1746951055556,-441.03,0.00019896,2]
[360719512,1746951055567,-400.0,0.00019896,2]
[360719514,1746951055576,-400.0,0.00019896,2]
[360719516,1746951055586,-390.98180446,0.00019896,2]
[360719518,1746951055595,-400.0,0.00019896,2]
[360719520,1746951055604,-450.0,0.00019896,2]
[360719522,1746951055614,-400.0,0.00019896,2]
[360719524,1746951055623,-224.54000277,0.00019896,2]
[360719527,1746951055635,-175.45999723,0.00019896,2]
[360719529,1746951055645,-543.99879238,0.00019896,2]
[360719531,1746951055654,-522.9665323,0.00019896,2]
[360719533,1746951055663,-400.0,0.00019896,2]
[360719534,1746951055673,-400.0,0.00019896,2]
[360719536,1746951055683,-400.0,0.00019896,2]
[360719538,1746951055692,-400.0,0.00019896,2]
[360719541,1746951055701,-400.0,0.00019896,2]
[360719544,1746951055711,-400.0,0.00019896,2]
[360719548,1746951055720,-400.0,0.00019896,2]
[360719550,1746951055730,-400.0,0.00019896,2]
[360719553,1746951055739,-400.0,0.00019896,2]
[360719556,1746951055748,-400.0,0.00019896,2]
[360719560,1746951055758,-400.0,0.00019896,2]
[360719563,1746951055769,-452.61659452,0.00019896,2]
[360719565,1746951055779,-400.0,0.00019896,2]
[360719569,1746951055788,-400.0,0.00019896,2]
[360719571,1746951055798,-485.49826629,0.00019896,2]
[360719575,1746951055807,-460.63358797,0.00019896,2]
[360719577,1746951055817,-400.0,0.00019896,2]
[360719579,1746951055827,-216.06354159,0.00019896,2]
[360719581,1746951055837,-400.0,0.00019896,2]
[360719583,1746951055846,-400.0,0.00019896,2]
[360719585,1746951055858,-500.0,0.00019896,2]
[360719587,1746951055868,-400.0,0.00019896,2]
[360719589,1746951055877,-400.0,0.00019896,2]
[360719590,1746951055887,-456.33119578,0.00019896,2]
[360719593,1746951055897,-500.0,0.00019896,2]
[360719595,1746951055907,-400.0,0.00019896,2]
[360719597,1746951055916,-400.0,0.00019896,2]
[360719598,1746951055925,-400.0,0.00019896,2]
[360719600,1746951055939,-400.0,0.00019896,2]
[360719602,1746951055949,-400.0,0.00019896,2]
[360719604,1746951055958,-400.0,0.00019896,2]
[360719606,1746951055968,-400.0,0.00019896,2]
[360719608,1746951055978,-400.0,0.00019896,2]
[360719610,1746951055987,-400.0,0.00019896,2]
[360719612,1746951055996,-399.17682069,0.00019896,2]
[360719614,1746951056006,-400.0,0.00019896,2]
[360719616,1746951056015,-400.0,0.00019896,2]
[360719618,1746951056025,-400.0,0.00019896,2]
[360719620,1746951056034,-400.0,0.00019896,2]
[360719622,1746951056043,-282.57948703,0.00019896,2]
[360719624,1746951056053,-201.98895347,0.00019896,2]
[360719626,1746951056062,-544.89158562,0.00019897,2]
[360719628,1746951056073,-400.0,0.00019897,2]
[360719631,1746951056083,-400.0,0.00019897,2]
[360719633,1746951056093,-525.3493592,0.00019897,2]
[360719634,1746951056102,-500.0,0.00019897,2]
[360719637,1746951056111,-400.0,0.00019897,2]
[360719639,1746951056121,-400.0,0.00019897,2]
[360719641,1746951056130,-511.0224219,0.00019897,2]
[360719642,1746951056141,-511.64626245,0.00019897,2]
[360719645,1746951056150,-503.05517386,0.00019897,2]
[360719646,1746951056159,-514.48658131,0.00019897,2]
[360719649,1746951056169,-503.2129861,0.00019897,2]
[360719651,1746951056178,-524.08244111,0.00019897,2]
[360719653,1746951056187,-400.0,0.00019897,2]
[360719654,1746951056197,-400.43398241,0.00019897,2]
[360719656,1746951056206,-504.49324482,0.00019897,2]
[360719659,1746951056215,-321.94458042,0.00019897,2]
[360719660,1746951056224,-160.03342752,0.00019897,2]
[360719662,1746951056234,-400.0,0.00019897,2]
[360719665,1746951056244,-400.0,0.00019897,2]
[360719666,1746951056253,-400.0,0.00019897,2]
[360719669,1746951056262,-340.12942915,0.00019897,2]
[360719670,1746951056272,-410.26047389,0.00019897,2]
[360719673,1746951056281,-400.0,0.00019897,2]
[360719675,1746951056291,-400.0,0.00019897,2]
[360719677,1746951056300,-400.0,0.00019897,2]
[360719678,1746951056309,-400.0,0.00019897,2]
[360719680,1746951056319,-484.35113703,0.00019897,2]
[360719683,1746951056328,-400.0,0.00019897,2]
[360719684,1746951056337,-400.0,0.00019897,2]
[360719686,1746951056347,-292.56709995,0.00019897,2]
[360719688,1746951056357,-400.0,0.00019897,2]
[360719691,1746951056366,-400.0,0.00019897,2]
[360719692,1746951056376,-288.82875552,0.00019897,2]
[360719694,1746951056386,-400.0,0.00019897,2]
[360719697,1746951056395,-400.0,0.00019897,2]
[360719699,1746951056405,-400.0,0.00019897,2]
[360719700,1746951056414,-400.0,0.00019897,2]
[360719703,1746951056424,-400.0,0.00019897,2]
[360719705,1746951056434,-400.0,0.00019897,2]
[360719707,1746951056443,-400.0,0.00019897,2]
[360719709,1746951056452,-518.51,0.00019897,2]
[360719711,1746951056461,-400.0,0.00019897,2]
[360719713,1746951056470,-400.0,0.00019897,2]
[360719715,1746951056479,-400.0,0.00019897,2]
[360719717,1746951056489,-400.0,0.00019897,2]
[360719719,1746951056498,-400.0,0.00019897,2]
[360719721,1746951056507,-206.72,0.00019897,2]
[360719723,1746951056517,-400.0,0.00019897,2]
[360719725,1746951056526,-525.92,0.00019897,2]
[360719727,1746951056535,-400.0,0.00019897,2]
[360719729,1746951056544,-400.0,0.00019897,2]
[360719731,1746951056553,-400.0,0.00019897,2]
[360719733,1746951056562,-500.69662033,0.00019897,2]
[360719735,1746951056572,-400.0,0.00019897,2]
[360719737,1746951056582,-400.0,0.00019897,2]
[360719739,1746951056591,-400.0,0.00019897,2]
[360719741,1746951056601,-542.86,0.00019897,2]
[360719743,1746951056610,-400.0,0.00019897,2]
[360719745,1746951056619,-400.0,0.00019897,2]
[360719747,1746951056628,-446.89125538,0.00019897,2]
[360719749,1746951056638,-400.0,0.00019897,2]
[360719751,1746951056647,-400.0,0.00019897,2]
[360719753,1746951056656,-400.0,0.00019897,2]
[360719755,1746951056665,-400.0,0.00019897,2]
[360719757,1746951056675,-400.0,0.00019897,2]
[360719759,1746951056684,-400.0,0.00019897,2]
[360719761,1746951056693,-250.0,0.00019897,2]
[360719763,1746951056703,-400.0,0.00019897,2]
[360719765,1746951056712,-400.0,0.00019897,2]
[360719767,1746951056721,-400.0,0.00019897,2]
[360719769,1746951056730,-400.0,0.00019897,2]
[360719771,1746951056739,-400.0,0.00019897,2]
[360719773,1746951056748,-180.85561887,0.00019897,2]
[360719775,1746951056758,-400.0,0.00019897,2]
[360719777,1746951056768,-400.0,0.00019897,2]
[360719779,1746951056777,-400.0,0.00019897,2]
[360719781,1746951056786,-400.0,0.00019897,2]
[360719783,1746951056795,-400.0,0.00019897,2]
[360719785,1746951056804,-400.0,0.00019897,2]
[360719787,1746951056814,-485.36,0.00019897,2]
[360719789,1746951056823,-400.0,0.00019897,2]
[360719791,1746951056832,-400.0,0.00019897,2]
[360719793,1746951056841,-400.0,0.00019897,2]
[360719795,1746951056851,-400.0,0.00019897,2]
[360719797,1746951056865,-400.0,0.00019897,2]
[360719799,1746951056875,-400.0,0.00019897,2]
[360719801,1746951056884,-400.0,0.00019897,2]
[360719802,1746951056893,-398.62587971,0.00019897,2]
[360719805,1746951056904,-400.0,0.00019897,2]
[360719806,1746951056913,-400.0,0.00019897,2]
[360719809,1746951056923,-309.20691873,0.00019897,2]
[360719811,1746951056934,-400.0,0.00019897,2]
[360719812,1746951056944,-406.58786232,0.00019897,2]
[360719814,1746951056953,-400.0,0.00019897,2]
[360719816,1746951056962,-400.0,0.00019897,2]
[360719819,1746951056972,-400.0,0.00019897,2]
[360719820,1746951056981,-537.01520942,0.00019897,2]
[360719823,1746951056990,-400.0,0.00019897,2]
[360719824,1746951057000,-400.0,0.00019897,2]
[360719827,1746951057009,-197.08503309,0.00019897,2]
[360719829,1746951057019,-400.0,0.00019897,2]
[360719831,1746951057029,-400.0,0.00019897,2]
[360719833,1746951057038,-400.0,0.00019897,2]
[360719835,1746951057049,-400.0,0.00019897,2]
[360719837,1746951057058,-400.0,0.00019897,2]
[360719839,1746951057067,-400.0,0.00019897,2]
[360719841,1746951057077,-214.15304695,0.00019897,2]
[360719843,1746951057087,-400.0,0.00019897,2]
[360719845,1746951057096,-400.0,0.00019897,2]
[360719847,1746951057106,-400.0,0.00019897,2]
[360719849,1746951057115,-400.0,0.00019897,2]
[360719850,1746951057125,-400.0,0.00019897,2]
[360719853,1746951057135,-400.0,0.00019897,2]
[360719855,1746951057144,-400.0,0.00019897,2]
[360719856,1746951057154,-400.0,0.00019897,2]
[360719859,1746951057164,-400.0,0.00019897,2]
[360719861,1746951057174,-400.0,0.00019897,2]
[360719863,1746951057183,-400.0,0.00019897,2]
[360719865,1746951057192,-400.0,0.00019897,2]
[360719867,1746951057202,-400.0,0.00019897,2]
[360719868,1746951057211,-400.0,0.00019897,2]
[360719871,1746951057220,-400.0,0.00019897,2]
[360719873,1746951057229,-400.0,0.00019897,2]
[360719874,1746951057239,-427.57749286,0.00019897,2]
[360719876,1746951057248,-400.0,0.00019897,2]
[360719879,1746951057258,-400.0,0.00019897,2]
[360719881,1746951057267,-400.0,0.00019897,2]
[360719883,1746951057277,-400.0,0.00019897,2]
[360719884,1746951057286,-400.0,0.00019897,2]
[360719886,1746951057296,-400.0,0.00019897,2]
[360719888,1746951057305,-400.0,0.00019897,2]
[360719890,1746951057315,-400.0,0.00019897,2]
[360719892,1746951057324,-400.0,0.00019897,2]
[360719894,1746951057333,-400.0,0.00019897,2]
[360719896,1746951057343,-400.0,0.00019897,2]
[360719898,1746951057353,-400.0,0.00019897,2]
[360719900,1746951057363,-463.1753762,0.00019897,2]
[360719902,1746951057372,-400.0,0.00019897,2]
[360719904,1746951057381,-173.65484284,0.00019897,2]
[360719907,1746951057392,-400.0,0.00019897,2]
[360719908,1746951057401,-400.0,0.00019897,2]
[360719910,1746951057410,-400.0,0.00019897,2]
[360719912,1746951057420,-400.0,0.00019897,2]
[360719914,1746951057429,-400.0,0.00019897,2]
[360719916,1746951057439,-400.0,0.00019897,2]
[360719918,1746951057448,-400.0,0.00019897,2]
[360719920,1746951057458,-400.0,0.00019897,2]
[360719921,1746951057467,-400.0,0.00019897,2]
[360719922,1746951057477,-492.25,0.00019897,2]
[360719923,1746951057486,-400.0,0.00019897,2]
[360719924,1746951057495,-400.0,0.00019897,2]
[360719925,1746951057505,-400.0,0.00019897,2]
[360719926,1746951057514,-400.0,0.00019897,2]
[360719927,1746951057524,-400.0,0.00019897,2]
[360719928,1746951057533,-50.58808785,0.00019897,2]
[360719930,1746951097512,201.90492085,0.00017032,2]
[360719931,1746951097541,546.29507915,0.00017032,2]
[360719956,1746951425491,200.0,0.0003,30]
[360719957,1746951639885,150.0,0.0003,30]
[360719959,1746951749353,2340.56361064,0.0003,35]
[360719970,1746951790775,1000.0,0.00030137,120]
[360720004,1746951993330,545.63,0.00025607,120]
[360720005,1746951993524,545.63,0.00027935,120]
[360720007,1746952031119,-622.717349,0.00018523,2]
[360720008,1746952031139,-250.0,0.00018617,2]
[360720009,1746952031165,-207.63832798,0.00018623,2]
[360720011,1746952079321,432.18,0.00020575,30]
[360720021,1746952178132,809.48,0.00016611,2]
[360720035,1746952232592,-398.74,0.0001853,2]
[360720036,1746952232601,-337.99167202,0.00018623,2]
[360720037,1746952232611,-250.0,0.00018627,2]
[360720038,1746952232621,-797.53591019,0.00018656,2]
[360720209,1746952238535,-402.46408981,0.00018656,2]
[360720210,1746952238545,-300.0,0.00018656,2]
[360720211,1746952238554,-300.0,0.00018656,2]
[360720212,1746952238563,-500.0,0.00018656,2]
[360720213,1746952238573,-500.0,0.00018656,2]
[360720227,1746952238746,-500.0,0.00018656,2]
[360720230,1746952238761,-500.0,0.00018656,2]
[360720231,1746952238770,-500.0,0.00018656,2]
[360720232,1746952238779,-500.0,0.00018656,2]
[360720233,1746952238788,-500.0,0.00018656,2]
[360720234,1746952238797,-500.0,0.00018656,2]
[360720235,1746952238806,-500.0,0.00018656,2]
[360720236,1746952238816,-500.0,0.00018656,2]
[360720237,1746952238826,-500.0,0.00018656,2]
[360720238,1746952238836,-500.0,0.00018656,2]
[360720239,1746952238847,-500.0,0.00018656,2]
[360720240,1746952238857,-500.0,0.00018656,2]
[360720241,1746952238866,-500.0,0.00018656,2]
[360720242,1746952238876,-500.0,0.00018656,2]
[360720243,1746952238886,-500.0,0.00018656,2]
[360720244,1746952238896,-500.0,0.00018656,2]
[360720245,1746952238906,-500.0,0.00018656,2]
[360720246,1746952238915,-500.0,0.00018656,2]
[360720247,1746952238924,-500.0,0.00018656,2]
[360720248,1746952238933,-500.0,0.00018656,2]
[360720249,1746952238943,-500.0,0.00018656,2]
[360720250,1746952238953,-500.0,0.00018656,2]
[360720251,1746952238962,-500.0,0.00018658,2]
[360720252,1746952238971,-150.0,0.00018658,2]
[360720253,1746952238980,-23900.0,0.00018658,2]
[360720254,1746952238990,-500.0,0.00018685,2]
[360720255,1746952238999,-1000.0,0.00018697,2]
[360720256,1746952239009,-500.0,0.00018713,2]
[360720257,1746952239018,-172.64,0.0001873,2]
[360720258,1746952239027,-168.54986924,0.00018739,2]
[360720259,1746952239036,-174.76452939,0.00018739,2]
[360720260,1746952239046,-152.77721232,0.00018739,2]
[360720261,1746952239055,-200.55173331,0.0001874,2]
[360720262,1746952239064,-180.64219057,0.000188,2]
[360720263,1746952239073,-809.48,0.00018875,2]
[360720264,1746952239082,-389.18652098,0.00018892,2]
[360720265,1746952239092,-203.67109953,0.000189,2]
[360720266,1746952239101,-1150.81,0.00018904,2]
[360720267,1746952239112,-641.45,0.00018931,2]
[360720268,1746952239123,-150.0,0.00018986,7]
[360720269,1746952239133,-203.67109946,0.00018991,2]
[360720270,1746952239143,-2301.68,0.00019,2]
[360720271,1746952239153,-2301.68,0.00019,2]
[360720272,1746952239163,-4005.21205741,0.00019,2]
[360720273,1746952239172,-203.67109946,0.00019082,2]
[360720274,1746952239181,-207.4,0.00019163,2]
[360720275,1746952239190,-203.67109946,0.00019173,2]
[360720276,1746952239201,-168.49867842,0.00019178,2]
[360720277,1746952239213,-500.0,0.00019178,2]
[360720278,1746952239223,-500.0,0.00019178,2]
[360720279,1746952239232,-500.0,0.00019178,2]
[360720280,1746952239242,-500.0,0.00019178,2]
[360720281,1746952239251,-500.0,0.00019178,2]
[360720282,1746952239261,-500.0,0.00019178,2]
[360720283,1746952239270,-487.22461435,0.00019178,2]
[360720284,1746952239281,-500.0,0.00019178,2]
[360720285,1746952239291,-500.0,0.00019178,2]
[360720286,1746952239300,-500.0,0.00019178,2]
[360720287,1746952239309,-500.0,0.00019178,2]
[360720288,1746952239319,-500.0,0.00019178,2]
[360720289,1746952239328,-385.20553238,0.00019178,2]
[360720290,1746952239337,-455.13026942,0.00019178,2]
[360720291,1746952239347,-500.0,0.00019178,2]
[360720292,1746952239356,-500.0,0.00019178,2]
[360720293,1746952239366,-500.0,0.00019178,2]
[360720294,1746952239384,-500.0,0.00019178,2]
[360720295,1746952239393,-500.0,0.00019178,2]
[360720296,1746952239403,-151.0,0.00019178,2]
[360720297,1746952239412,-475.95101962,0.00019178,2]
[360720298,1746952239425,-1024.04898038,0.00019178,2]
[360720299,1746952239434,-799.49949641,0.00019202,2]
[360720300,1746952239443,-203.67109946,0.00019264,2]
[360720301,1746952239452,-203.67109946,0.00019355,2]
[360720302,1746952239461,-203.67109946,0.00019445,2]
[360720303,1746952239471,-912.69469535,0.000195,2]
[360720304,1746952239480,-203.67109946,0.00019536,2]
[360720305,1746952239489,-10373.6111812,0.00019621,2]
[360720306,1746952239499,-203.67109946,0.00019627,2]
[360720307,1746952239508,-799.49949641,0.00019688,2]
[360720308,1746952239517,-203.67109946,0.00019718,2]
[360720309,1746952239526,-155.0,0.00019722,2]
[360720310,1746952239535,-151.0,0.00019722,2]
[360720311,1746952239544,-152.33811959,0.00019722,2]
[360720312,1746952239553,-668.65185757,0.00019722,2]
[360720313,1746952239562,-238.09834718,0.00019722,2]
[360720314,1746952239571,-400.0,0.00019734,2]
[360720315,1746952239580,-400.0,0.00019734,2]
[360720316,1746952239590,-400.0,0.00019734,2]
[360720317,1746952239599,-400.0,0.00019734,2]
[360720318,1746952239608,-400.0,0.00019734,2]
[360720319,1746952239617,-400.0,0.00019734,2]
[360720320,1746952239627,-400.0,0.00019734,2]
[360720321,1746952239636,-400.0,0.00019734,2]
[360720322,1746952239645,-400.0,0.00019734,2]
[360720323,1746952239655,-400.0,0.00019734,2]
[360720324,1746952239663,-400.0,0.00019734,2]
[360720325,1746952239673,-400.0,0.00019734,2]
[360720326,1746952239683,-400.0,0.00019734,2]
[360720327,1746952239694,-400.0,0.00019734,2]
[360720328,1746952239703,-400.0,0.00019734,2]
[360720329,1746952239712,-400.0,0.00019734,2]
[360720330,1746952239722,-400.0,0.00019734,2]
[360720331,1746952239731,-400.0,0.00019734,2]
[360720332,1746952239740,-400.0,0.00019734,2]
[360720333,1746952239749,-400.0,0.00019734,2]
[360720334,1746952239758,-400.0,0.00019734,2]
[360720335,1746952239767,-400.0,0.00019734,2]
[360720336,1746952239776,-400.0,0.00019734,2]
[360720337,1746952239785,-400.0,0.00019734,2]
[360720338,1746952239795,-400.0,0.00019734,2]
[360720339,1746952239804,-400.0,0.00019734,2]
[360720340,1746952239814,-400.0,0.00019734,2]
[360720341,1746952239823,-435.18264615,0.00019734,2]
[360720342,1746952239832,-400.0,0.00019734,2]
[360720343,1746952239841,-400.0,0.00019734,2]
[360720344,1746952239850,-400.0,0.00019734,2]
[360720345,1746952239859,-400.0,0.00019734,2]
[360720346,1746952239868,-400.0,0.00019734,2]
[360720347,1746952239878,-400.0,0.00019734,2]
[360720348,1746952239887,-400.0,0.00019734,2]
[360720349,1746952239896,-400.0,0.00019734,2]
[360720350,1746952239905,-302.69743655,0.00019734,2]
[360720352,1746952240670,-97.30256345,0.00019734,2]
[360720353,1746952240680,-400.0,0.00019734,2]
[360720354,1746952240690,-626.77,0.00019734,2]
[360720355,1746952240699,-400.0,0.00019734,2]
[360720356,1746952240708,-400.0,0.00019734,2]
[360720357,1746952240717,-483.17,0.00019734,2]
[360720358,1746952240727,-492.52,0.00019734,2]
[360720359,1746952240736,-462.32,0.00019734,2]
[360720360,1746952240912,-456.83,0.00019734,2]
[360720361,1746952240924,-400.0,0.00019734,2]
[360720362,1746952240934,-400.0,0.00019734,2]
[360720363,1746952240943,-400.0,0.00019734,2]
[360720364,1746952240953,-572.19,0.00019734,2]
[360720365,1746952240963,-400.0,0.00019734,2]
[360720366,1746952240973,-400.0,0.00019734,2]
[360720367,1746952240983,-478.7,0.00019734,2]
[360720368,1746952240992,-468.52,0.00019734,2]
[360720369,1746952241003,-400.0,0.00019734,2]
[360720370,1746952241014,-424.01,0.00019734,2]
[360720371,1746952241023,-400.0,0.00019734,2]
[360720372,1746952241033,-400.0,0.00019734,2]
[360720373,1746952241043,-400.0,0.00019734,2]
[360720374,1746952241054,-400.0,0.00019734,2]
[360720375,1746952241063,-400.0,0.00019734,2]
[360720376,1746952241073,-400.0,0.00019734,2]
[360720377,1746952241082,-400.0,0.00019734,2]
[360720378,1746952241092,-400.0,0.00019734,2]
[360720379,1746952241101,-400.0,0.00019734,2]
[360720380,1746952241111,-400.0,0.00019734,2]
[360720381,1746952241127,-400.0,0.00019734,2]
[360720382,1746952241147,-400.0,0.00019734,2]
[360720383,1746952241159,-400.0,0.00019734,2]
[360720384,1746952241169,-400.0,0.00019734,2]
[360720385,1746952241178,-400.0,0.00019734,2]
[360720386,1746952241187,-572.49,0.00019734,2]
[360720387,1746952241197,-400.0,0.00019734,2]
[360720388,1746952241210,-400.0,0.00019734,2]
[360720389,1746952241219,-400.0,0.00019734,2]
[360720390,1746952241229,-841.26,0.00019734,2]
[360720391,1746952241239,-400.0,0.00019734,2]
[360720392,1746952241250,-400.0,0.00019734,2]
[360720393,1746952241259,-3478.0628,0.00019748,2]
[360720394,1746952241269,-2500.0,0.0001976,2]
[360720395,1746952241278,-4452.25748234,0.00019765,2]
[360720396,1746952241289,-4452.25748227,0.0001978,2]
[360720397,1746952241299,-4452.25748227,0.00019795,2]
[360720398,1746952241308,-995.8541,0.00019795,2]
[360720399,1746952241318,-184.42517505,0.00019796,2]
[360720400,1746952241327,-174.8107938,0.00019796,2]
[360720401,1746952241337,-4858.95788525,0.000198,2]
[360720402,1746952241346,-1437.12781368,0.000198,2]
[360720403,1746952241356,-203.67109946,0.00019809,2]
[360720404,1746952241365,-4452.25748227,0.0001981,2]